bitfinex/quotes_SOLUSD_20241122
["timestamp","ask_amount","ask_price","bid_price","bid_amount"]
[1732289309383,21.6709,255.41,255.2,23.776884]
[1732289309384,11.92555365,255.37,255.28,11.92555365]
[1732289309592,20.0,255.38,255.32,11.92555365]
[1732289309768,20.0,255.4,255.32,11.92555365]
[1732289310089,33.59645365,255.41,255.34,11.92555365]
[1732289310888,33.59645365,255.41,255.32,11.92555365]
[1732289311098,11.92555365,255.39,255.3,11.92555365]
[1732289311278,11.92555365,255.35,255.28,11.92555365]
[1732289312393,11.92555365,255.35,255.26,11.92555365]
[1732289313107,11.92555365,255.35,255.28,11.92555365]
[1732289313393,11.92555365,255.37,255.28,11.92555365]
[1732289313788,11.92555365,255.39,255.32,11.92555365]
[1732289314097,33.59645365,255.41,255.32,11.92555365]
[1732289314274,33.59645365,255.41,255.33,11.92555365]
[1732289314473,11.92555365,255.39,255.31,11.92555365]
[1732289314670,33.59645365,255.41,255.33,11.92555365]
[1732289314871,21.6709,255.41,255.33,11.92555365]
[1732289315088,33.59645365,255.41,255.33,11.92555365]
[1732289315378,33.59645365,255.41,255.31,11.92555365]
[1732289315693,11.92555365,255.37,255.29,11.92555365]
[1732289315891,11.92555365,255.39,255.31,11.92555365]
[1732289318604,11.92555365,255.39,255.29,11.92555365]
[1732289319877,11.92555365,255.35,255.25,27.87045365]
[1732289320313,11.92555365,255.33,255.25,11.92555365]
[1732289320600,11.92555365,255.31,255.23,11.92555365]
[1732289320802,11.92555365,255.29,255.21,11.92555365]
[1732289321004,11.92555365,255.31,255.21,11.92555365]
[1732289321202,11.92555365,255.31,255.23,11.92555365]
[1732289321410,11.92555365,255.29,255.21,11.92555365]
[1732289321996,11.92555365,255.31,255.23,11.92555365]
[1732289322302,11.92555365,255.29,255.21,11.92555365]
[1732289322515,26.276884,255.4,255.19,11.92555365]
[1732289322516,11.92555365,255.27,255.19,11.92555365]
[1732289322829,11.92555365,255.27,255.17,11.92555365]
[1732289323330,11.92555365,255.25,255.17,11.92555365]
[1732289323492,11.92555365,255.23,255.15,11.92555365]
[1732289323694,11.92555365,255.25,255.15,11.92555365]
[1732289324087,11.92555365,255.23,255.13,11.92555365]
[1732289324490,11.92555365,255.21,255.13,11.92555365]
[1732289324684,11.92555365,255.19,255.09,11.92555365]
[1732289325003,138.7171,255.29,255.09,11.92555365]
[1732289325004,11.92555365,255.17,255.09,11.92555365]
[1732289325400,11.92555365,255.17,255.07,27.30595365]
[1732289325602,11.92555365,255.17,255.07,11.92555365]
[1732289326014,11.92555365,255.15,255.07,11.92555365]
[1732289327211,11.92555365,255.13,255.05,11.92555365]
[1732289327420,11.92555365,255.11,255.03,11.92555365]
[1732289327986,33.77545365,255.19,254.99,11.92555365]
[1732289327987,11.92555365,255.07,254.99,11.92555365]
[1732289328193,11.92555365,255.05,254.95,15.0217]
[1732289328403,11.92555365,255.05,254.96,11.92555365]
[1732289328903,22.458,255.08,254.94,11.92555365]
[1732289328904,11.92555365,255.03,254.94,11.92555365]
[1732289329312,11.92555365,255.07,254.98,11.92555365]
[1732289329492,22.458,255.08,255.0,11.92555365]
[1732289329808,11.92555365,255.09,255.02,11.92555365]
[1732289331098,11.92555365,255.09,255.0,11.92555365]
[1732289331991,11.92555365,255.07,255.0,11.92555365]
[1732289332804,11.92555365,255.07,254.98,11.92555365]
[1732289333005,11.92555365,255.05,254.96,11.92555365]
[1732289333213,11.92555365,255.05,254.98,11.92555365]
[1732289333512,11.92555365,255.07,254.98,11.92555365]
[1732289333718,11.92555365,255.05,254.96,11.92555365]
[1732289334817,11.92555365,255.03,254.96,11.92555365]
[1732289335020,11.92555365,255.03,254.94,11.92555365]
[1732289335200,11.92555365,255.03,254.96,11.92555365]
[1732289335401,11.92555365,255.05,254.96,11.92555365]
[1732289335717,11.92555365,255.05,254.89,15.1178]
[1732289335718,11.92555365,255.09,255.0,11.92555365]
[1732289335901,11.92555365,255.07,254.98,11.92555365]
[1732289336297,11.92555365,255.05,254.96,11.92555365]
[1732289337117,11.92555365,255.07,254.98,11.92555365]
[1732289341016,11.92555365,255.09,255.0,11.92555365]
[1732289341319,11.92555365,255.12,255.04,11.92555365]
[1732289341497,34.50515365,255.14,255.04,11.92555365]
[1732289341916,11.92555365,255.12,255.04,11.92555365]
[1732289342893,11.92555365,255.1,255.02,11.92555365]
[1732289344418,11.92555365,255.12,255.04,11.92555365]
[1732289344625,22.5796,255.14,255.1,11.92555365]
[1732289344793,11.92555365,255.19,255.1,11.92555365]
[1732289344995,11.92555365,255.15,255.06,11.92555365]
[1732289345218,11.92555365,255.13,255.04,11.92555365]
[1732289347095,11.92555365,255.11,255.02,11.92555365]
[1732289347300,11.92555365,255.09,255.0,11.92555365]
[1732289348721,11.92555365,255.09,255.02,11.92555365]
[1732289349219,11.92555365,255.09,255.0,11.92555365]
[1732289350227,20.0,255.14,255.06,11.92555365]
[1732289350599,11.92555365,255.11,255.04,11.92555365]
[1732289350800,11.92555365,255.09,255.02,11.92555365]
[1732289351015,134.8,255.17,254.86,15.1223]
[1732289351016,11.92555365,255.05,254.86,15.1223]
[1732289351208,11.92555365,255.05,254.96,11.92555365]
[1732289351521,11.92555365,255.07,254.98,11.92555365]
[1732289351815,21.7616,255.08,255.0,11.92555365]
[1732289353425,21.7616,255.08,255.02,11.92555365]
[1732289353719,11.92555365,255.13,255.04,11.92555365]
[1732289354109,11.92555365,255.11,255.04,11.92555365]
[1732289355429,11.92555365,255.13,255.04,11.92555365]
[1732289355600,11.92555365,255.11,255.02,11.92555365]
[1732289356499,21.3212,255.14,255.04,11.92555365]
[1732289356500,20.0,255.12,255.04,11.92555365]
[1732289356704,11.92555365,255.11,255.04,11.92555365]
[1732289357711,11.92555365,255.11,255.02,11.92555365]
[1732289358217,11.92555365,255.09,255.0,11.92555365]
[1732289358514,11.92555365,255.11,255.02,11.92555365]
[1732289358725,20.0,255.12,255.04,11.92555365]
[1732289358921,11.92555365,255.11,255.04,11.92555365]
[1732289359124,11.92555365,255.11,255.02,11.92555365]
[1732289360423,11.92555365,255.09,255.0,11.92555365]
[1732289360810,11.92555365,255.07,254.98,11.92555365]
[1732289361633,20.0,255.13,254.98,11.92555365]
[1732289361634,11.92555365,255.05,254.98,11.92555365]
[1732289362504,11.92555365,255.07,255.0,11.92555365]
[1732289363024,33.24675365,255.14,255.04,11.92555365]
[1732289363226,11.92555365,255.12,255.04,11.92555365]
[1732289366005,21.3212,255.14,255.09,11.92555365]
[1732289366711,22.6278,255.2,255.13,11.92555365]
[1732289367024,22.6278,255.2,255.17,11.92555365]
[1732289367230,34.55335365,255.26,255.17,11.92555365]
[1732289367528,11.92555365,255.22,255.15,11.92555365]
[1732289367703,11.92555365,255.2,255.11,11.92555365]
[1732289368628,11.92555365,255.22,255.15,11.92555365]
[1732289368838,11.92555365,255.24,255.15,11.92555365]
[1732289369932,11.92555365,255.24,255.17,11.92555365]
[1732289370112,22.6278,255.26,255.19,11.92555365]
[1732289370319,34.55335365,255.26,255.19,11.92555365]
[1732289370520,34.55335365,255.26,255.17,11.92555365]
[1732289370911,34.55335365,255.26,255.19,11.92555365]
[1732289371233,34.55335365,255.26,255.17,11.92555365]
[1732289372028,11.92555365,255.24,255.15,11.92555365]
[1732289372326,11.92555365,255.22,255.13,11.92555365]
[1732289372922,22.6278,255.26,255.07,26.97910465]
[1732289372923,11.92555365,255.2,255.11,11.92555365]
[1732289373315,11.92555365,255.18,255.11,11.92555365]
[1732289373833,11.92555365,255.18,255.09,11.92555365]
[1732289376332,11.92555365,255.18,255.01,15.0356]
[1732289376333,11.92555365,255.16,255.07,11.92555365]
[1732289378036,11.92555365,255.16,255.09,11.92555365]
[1732289378531,11.92555365,255.19,255.11,11.92555365]
[1732289379434,11.92555365,255.14,255.06,11.92555365]
[1732289379645,11.92555365,255.16,255.08,11.92555365]
[1732289380730,11.92555365,255.18,255.11,11.92555365]
[1732289381621,11.92555365,255.18,255.1,11.92555365]
[1732289381827,34.52875365,255.17,255.09,11.92555365]
[1732289382015,34.52875365,255.17,254.95,11.92555365]
[1732289382016,20.0,255.08,254.95,11.92555365]
[1732289382215,11.92555365,255.03,254.95,11.92555365]
[1732289385619,11.92555365,255.03,254.93,11.92555365]
[1732289386036,11.92555365,255.03,254.95,11.92555365]
[1732289387014,22.6032,255.06,255.02,11.92555365]
[1732289387214,22.6032,255.06,255.0,11.92555365]
[1732289387552,11.92555365,255.05,254.98,11.92555365]
[1732289387843,11.92555365,255.05,254.96,11.92555365]
[1732289388211,11.92555365,255.03,254.96,11.92555365]
[1732289388849,11.92555365,255.03,254.94,11.92555365]
[1732289389020,11.92555365,255.01,254.94,11.92555365]
[1732289390217,11.92555365,255.03,254.94,11.92555365]
[1732289390420,11.92555365,255.03,254.96,11.92555365]
[1732289392141,11.92555365,255.05,254.96,11.92555365]
[1732289392524,22.6032,255.06,254.98,11.92555365]
[1732289393039,11.92555365,255.05,254.98,11.92555365]
[1732289393228,11.92555365,255.05,254.96,11.92555365]
[1732289393626,11.92555365,255.05,254.98,11.92555365]
[1732289395541,22.6032,255.06,255.04,11.92555365]
[1732289396029,22.6032,255.06,255.0,11.92555365]
[1732289396239,22.6032,255.06,254.98,11.92555365]
[1732289397314,22.6032,255.06,254.87,23.776884]
[1732289397315,22.6032,255.06,255.0,11.92555365]
[1732289397641,22.6032,255.06,254.98,11.92555365]
[1732289399229,22.6032,255.06,255.0,11.92555365]
[1732289399628,22.6032,255.06,254.98,11.92555365]
[1732289399834,22.53812944,255.06,254.98,11.92555365]
[1732289401934,22.53812944,255.06,255.0,11.92555365]
[1732289402741,22.53812944,255.06,255.02,7.6574537]
[1732289402951,22.53812944,255.06,255.0,7.6574537]
[1732289404542,21.3089,255.12,255.02,7.6574537]
[1732289404737,21.3089,255.12,255.03,11.96422541]
[1732289404738,31.96422541,255.11,255.03,11.96422541]
[1732289404944,21.3089,255.12,255.05,11.96422541]
[1732289405125,22.3357,255.18,255.09,11.96422541]
[1732289405447,22.3357,255.18,255.11,11.96422541]
[1732289405624,22.3357,255.18,255.09,11.96422541]
[1732289406127,22.3357,255.18,255.11,11.96422541]
[1732289406933,11.96422541,255.15,255.06,11.96422541]
[1732289407439,11.96422541,255.15,255.08,11.96422541]
[1732289407642,11.96422541,255.15,255.06,11.96422541]
[1732289408944,11.96422541,255.13,255.04,11.96422541]
[1732289409249,11.96422541,255.11,255.02,11.96422541]
[1732289410057,11.96422541,255.09,255.0,11.96422541]
[1732289410234,11.96422541,255.07,254.98,11.96422541]
[1732289410432,11.96422541,255.05,254.96,11.96422541]
[1732289410846,11.96422541,255.03,254.96,11.96422541]
[1732289411361,11.96422541,255.01,254.91,11.96422541]
[1732289412230,11.96422541,255.05,254.97,11.96422541]
[1732289412457,11.96422541,255.03,254.95,11.96422541]
[1732289413057,11.96422541,255.03,254.93,11.96422541]
[1732289413354,20.0,255.04,254.95,11.96422541]
[1732289414042,11.96422541,255.03,254.95,11.96422541]
[1732289415129,11.96422541,254.99,254.92,11.96422541]
[1732289415326,11.96422541,255.01,254.94,11.96422541]
[1732289415530,11.96422541,255.03,254.94,11.96422541]
[1732289416856,11.96422541,255.01,254.92,11.96422541]
[1732289417356,11.96422541,255.01,254.94,11.96422541]
[1732289417657,11.96422541,255.01,254.92,11.96422541]
[1732289418439,11.96422541,254.99,254.9,11.96422541]
[1732289419047,11.96422541,254.99,254.92,11.96422541]
[1732289419949,11.96422541,254.99,254.83,23.776884]
[1732289419950,11.96422541,254.99,254.9,11.96422541]
[1732289420160,23.776884,255.04,254.82,19.51560886]
[1732289420161,11.96422541,254.95,254.86,11.96422541]
[1732289420339,11.96422541,254.93,254.86,11.96422541]
[1732289420854,11.96422541,254.91,254.76,15.7847]
[1732289421032,11.96422541,254.89,254.82,11.96422541]
[1732289421352,6.6431,254.92,254.86,11.96422541]
[1732289421537,6.6431,254.92,254.88,11.96422541]
[1732289422561,6.6091,254.99,254.9,11.96422541]
[1732289422850,6.6091,254.99,254.94,11.96422541]
[1732289423227,22.0196,255.06,254.98,11.96422541]
[1732289423432,22.0196,255.06,255.0,11.96422541]
[1732289423654,22.0196,255.06,254.93,11.96422541]
[1732289423655,22.0196,255.06,255.02,11.96422541]
[1732289423957,15.8199,255.12,255.04,11.96422541]
[1732289424176,18.38422541,255.13,254.93,11.96422541]
[1732289424177,6.42,255.13,255.06,11.96422541]
[1732289424459,11.96422541,255.1,255.03,11.96422541]
[1732289424669,11.96422541,255.1,255.01,11.96422541]
[1732289425260,11.96422541,255.04,254.95,11.96422541]
[1732289425461,11.96422541,255.02,254.93,11.96422541]
[1732289425760,11.96422541,254.98,254.9,11.96422541]
[1732289425930,11.96422541,255.01,254.92,11.96422541]
[1732289426336,11.96422541,254.97,254.88,11.96422541]
[1732289426632,18.48072541,254.99,254.9,11.96422541]
[1732289428551,11.96422541,254.97,254.88,11.96422541]
[1732289429055,11.96422541,254.95,254.86,11.96422541]
[1732289430449,11.96422541,254.93,254.84,11.96422541]
[1732289431467,11.96422541,254.91,254.82,11.96422541]
[1732289431834,11.96422541,254.89,254.79,11.96422541]
[1732289432141,11.96422541,254.89,254.81,11.96422541]
[1732289433763,6.434,254.88,254.79,11.96422541]
[1732289434456,6.434,254.88,254.83,11.96422541]
[1732289435385,6.434,254.88,254.81,11.96422541]
[1732289435668,11.96422541,254.93,254.85,11.96422541]
[1732289436052,20.0,254.94,254.85,11.96422541]
[1732289437156,11.96422541,254.93,254.85,11.96422541]
[1732289437468,11.96422541,254.93,254.83,11.96422541]
[1732289438242,11.96422541,254.9,254.83,11.96422541]
[1732289438441,11.96422541,254.9,254.81,11.96422541]
[1732289439575,11.96422541,254.9,254.83,11.96422541]
[1732289439746,11.96422541,254.92,254.83,11.96422541]
[1732289440082,11.96422541,254.94,254.85,11.96422541]
[1732289440869,31.96422541,254.96,254.87,11.96422541]
[1732289441056,6.4224,254.97,254.89,11.96422541]
[1732289441255,6.4224,254.97,254.93,11.96422541]
[1732289443250,6.4224,254.97,254.91,11.96422541]
[1732289443657,6.4224,254.97,254.89,11.96422541]
[1732289444068,18.38662541,254.97,254.88,11.96422541]
[1732289445453,20.0,254.9,254.71,16.2009]
[1732289445661,20.0,254.9,254.81,11.96422541]
[1732289446264,11.96422541,254.89,254.81,11.96422541]
[1732289447569,20.0,254.9,254.83,11.96422541]
[1732289448873,11.96422541,254.89,254.81,11.96422541]
[1732289449052,11.96422541,254.89,254.79,11.96422541]
[1732289449255,11.96422541,254.87,254.79,11.96422541]
[1732289449475,11.96422541,254.85,254.77,11.96422541]
[1732289449680,11.96422541,254.85,254.75,11.96422541]
[1732289449965,11.96422541,254.85,254.66,15.5728]
[1732289449966,11.96422541,254.85,254.77,11.96422541]
[1732289451370,22.884,254.86,254.75,11.96422541]
[1732289451371,11.96422541,254.83,254.75,11.96422541]
[1732289455451,11.96422541,254.81,254.73,11.96422541]
[1732289456164,11.96422541,254.83,254.73,11.96422541]
[1732289456364,20.0,254.85,254.77,11.96422541]
[1732289457150,31.96422541,254.85,254.77,11.96422541]
[1732289457962,31.96422541,254.85,254.75,11.96422541]
[1732289458168,11.96422541,254.83,254.75,11.96422541]
[1732289458479,31.96422541,254.85,254.75,11.96422541]
[1732289459265,11.96422541,254.83,254.75,11.96422541]
[1732289460450,31.96422541,254.85,254.77,11.96422541]
[1732289460647,11.96422541,254.83,254.75,11.96422541]
[1732289461755,31.96422541,254.85,254.75,11.96422541]
[1732289463072,22.884,254.86,254.83,11.96422541]
[1732289463278,22.4599,254.92,254.85,11.96422541]
[1732289463673,22.4599,254.92,254.87,11.96422541]
[1732289464274,11.96422541,254.97,254.89,11.96422541]
[1732289464473,22.3279,254.98,254.8,11.96422541]
[1732289464474,22.3279,254.98,254.91,11.96422541]
[1732289464659,11.96422541,254.97,254.89,11.96422541]
[1732289465254,11.96422541,254.95,254.87,11.96422541]
[1732289465582,11.96422541,254.93,254.83,11.96422541]
[1732289466657,11.96422541,254.88,254.8,11.96422541]
[1732289467055,11.96422541,254.86,254.7,15.8971]
[1732289467367,11.96422541,254.86,254.76,11.96422541]
[1732289467574,11.96422541,254.82,254.74,11.96422541]
[1732289468871,11.96422541,254.82,254.63,15.5125]
[1732289468872,11.96422541,254.82,254.72,11.96422541]
[1732289469475,11.96422541,254.82,254.74,11.96422541]
[1732289469658,11.96422541,254.82,254.72,11.96422541]
[1732289469854,11.96422541,254.8,254.72,11.96422541]
[1732289470284,11.96422541,254.74,254.66,11.96422541]
[1732289470464,50.378984,254.79,254.64,11.96422541]
[1732289470465,11.96422541,254.72,254.64,11.96422541]
[1732289471078,15.0016,254.74,254.6,11.96422541]
[1732289471079,11.96422541,254.68,254.6,11.96422541]
[1732289471674,11.96422541,254.66,254.59,6.85039925]
[1732289472780,11.96422541,254.68,254.6,11.96422541]
[1732289474061,11.96422541,254.7,254.62,11.96422541]
[1732289474286,11.96422541,254.72,254.64,11.96422541]
[1732289474586,26.96582541,254.74,254.66,11.96422541]
[1732289474782,11.96422541,254.72,254.64,11.96422541]
[1732289475082,11.96422541,254.7,254.62,11.96422541]
[1732289475284,11.96422541,254.72,254.64,11.96422541]
[1732289475661,11.96422541,254.7,254.62,11.96422541]
[1732289476276,11.96422541,254.68,254.59,6.85039925]
[1732289476777,11.96422541,254.68,254.6,11.96422541]
[1732289476970,11.96422541,254.66,254.59,6.85039925]
[1732289477171,11.96422541,254.62,254.59,6.85039925]
[1732289478563,11.96422541,254.6,254.59,6.85039925]
[1732289478783,11.96422541,254.62,254.59,6.85039925]
[1732289478979,11.96422541,254.6,254.59,6.85039925]
[1732289479361,11.96422541,254.62,254.59,6.85039925]
[1732289480370,11.96422541,254.64,254.59,6.85039925]
[1732289480886,11.96422541,254.62,254.59,6.85039925]
[1732289481377,11.96422541,254.64,254.59,6.85039925]
[1732289481960,11.96422541,254.62,254.59,6.85039925]
[1732289482161,11.96422541,254.6,254.59,6.85039925]
[1732289482597,11.96422541,254.6,254.59,30.62728325]
[1732289483286,11.96422541,254.6,254.59,6.85039925]
[1732289483583,31.96422541,254.6,254.59,6.85039925]
[1732289484278,20.0,254.59,254.44,11.96422541]
[1732289484580,11.96422541,254.52,254.44,11.96422541]
[1732289485163,20.0,254.59,254.38,6.4337]
[1732289485164,11.96422541,254.48,254.38,11.96422541]
[1732289485380,11.96422541,254.46,254.38,11.96422541]
[1732289485687,11.96422541,254.48,254.4,11.96422541]
[1732289485867,11.96422541,254.46,254.38,11.96422541]
[1732289486077,11.96422541,254.44,254.36,11.96422541]
[1732289486274,11.96422541,254.41,254.23,2.5]
[1732289486571,11.96422541,254.37,254.28,11.96422541]
[1732289486870,11.96422541,254.37,254.3,11.96422541]
[1732289487265,11.96422541,254.39,254.3,11.96422541]
[1732289488060,11.96422541,254.38,254.3,11.96422541]
[1732289488281,15.0954,254.46,254.36,11.96422541]
[1732289488475,11.96422541,254.46,254.39,23.776884]
[1732289488679,11.96422541,254.44,254.39,23.776884]
[1732289488883,19.24278176,254.44,254.37,23.776884]
[1732289491488,19.24278176,254.48,254.4,19.24278176]
[1732289491797,19.24278176,254.48,254.41,23.776884]
[1732289493966,19.24278176,254.5,254.43,23.776884]
[1732289494970,19.24278176,254.5,254.41,23.776884]
[1732289495167,19.24278176,254.46,254.41,23.776884]
[1732289495366,6.415,254.51,254.3,4.55953734]
[1732289495367,19.24278176,254.44,254.36,19.24278176]
[1732289495685,19.24278176,254.44,254.37,20.0]
[1732289495885,19.24278176,254.48,254.4,19.24278176]
[1732289496083,19.24278176,254.5,254.42,19.24278176]
[1732289496293,19.24278176,254.48,254.4,19.24278176]
[1732289496485,19.24278176,254.48,254.41,23.776884]
[1732289496782,19.24278176,254.46,254.38,19.24278176]
[1732289497372,19.24278176,254.44,254.36,19.24278176]
[1732289497780,19.24278176,254.44,254.37,23.776884]
[1732289498268,19.24278176,254.46,254.38,19.24278176]
[1732289498469,19.24278176,254.46,254.39,23.776884]
[1732289498787,19.24278176,254.48,254.41,23.776884]
[1732289499385,19.24278176,254.48,254.39,23.776884]
[1732289499595,19.24000752,254.47,254.39,23.776884]
[1732289500265,25.65500752,254.51,254.39,23.776884]
[1732289500465,19.24000752,254.49,254.39,23.776884]
[1732289500881,25.65500752,254.51,254.39,23.776884]
[1732289501290,25.65500752,254.51,254.4,20.0]
[1732289501492,25.65500752,254.51,254.41,23.776884]
[1732289502063,19.24000752,254.49,254.41,23.776884]
[1732289504189,19.24000752,254.47,254.41,23.776884]
[1732289504492,6.415,254.51,254.32,22.4608]
[1732289504493,19.24000752,254.49,254.32,22.4608]
[1732289504788,20.0,254.48,254.32,22.4608]
[1732289505382,19.24000752,254.47,254.32,22.4608]
[1732289505585,19.24000752,254.47,254.32,27.021234]
[1732289505894,20.0,254.48,254.33,20.0]
[1732289506396,6.415,254.51,254.33,20.0]
[1732289507097,6.415,254.51,254.37,20.0]
[1732289507475,6.415,254.51,254.38,23.776884]
[1732289507681,6.415,254.51,254.4,23.776884]
[1732289507993,19.24000752,254.53,254.4,23.776884]
[1732289508178,19.24000752,254.59,254.42,23.776884]
[1732289508584,6.6478,254.6,254.44,23.776884]
[1732289508781,19.24000752,254.59,254.45,20.0]
[1732289508988,19.24000752,254.59,254.46,23.776884]
[1732289509697,19.24000752,254.51,254.46,23.776884]
[1732289509881,19.24000752,254.51,254.33,20.0]
[1732289510783,19.24000752,254.49,254.33,20.0]
[1732289511002,12.02246785,254.5,254.35,20.0]
[1732289511189,12.02246785,254.5,254.36,23.776884]
[1732289511378,12.02246785,254.5,254.37,20.0]
[1732289511581,12.02246785,254.52,254.38,23.776884]
[1732289511879,12.02246785,254.5,254.4,23.776884]
[1732289512395,20.0,254.49,254.4,23.776884]
[1732289512777,19.23189062,254.52,254.4,23.776884]
[1732289513207,19.23189062,254.54,254.4,23.776884]
[1732289513501,19.23189062,254.52,254.4,23.776884]
[1732289513904,19.23189062,254.5,254.4,23.776884]
[1732289514593,19.23189062,254.46,254.4,23.776884]
[1732289514790,19.23189062,254.48,254.4,23.776884]
[1732289515290,19.23189062,254.5,254.4,23.776884]
[1732289518080,141.4478,254.6,254.4,23.776884]
[1732289518291,19.23189062,254.57,254.44,23.776884]
[1732289518696,19.23189062,254.57,254.45,20.0]
[1732289518979,25.87969062,254.6,254.46,23.776884]
[1732289519301,19.23189062,254.58,254.46,23.776884]
[1732289519803,19.23189062,254.56,254.46,23.776884]
[1732289521001,19.23189062,254.54,254.46,23.776884]
[1732289521191,19.23189062,254.52,254.46,23.776884]
[1732289521391,19.23189062,254.54,254.46,23.776884]
[1732289521912,19.23189062,254.54,254.45,23.776884]
[1732289522694,19.23189062,254.54,254.32,6.5806]
[1732289522908,19.23189062,254.48,254.33,15.1606]
[1732289523317,19.23189062,254.5,254.33,15.1606]
[1732289523691,19.23189062,254.48,254.33,15.1606]
[1732289523894,19.23189062,254.46,254.33,15.1606]
[1732289524113,19.23189062,254.44,254.33,15.1606]
[1732289524712,20.0,254.51,254.33,15.1606]
[1732289524713,19.23189062,254.46,254.33,15.1606]
[1732289525326,19.23189062,254.46,254.34,20.0]
[1732289525503,19.23189062,254.46,254.35,23.776884]
[1732289525911,154.03189062,254.52,254.37,23.776884]
[1732289526211,19.23189062,254.56,254.42,20.0]
[1732289526417,19.23189062,254.56,254.43,23.776884]
[1732289526988,19.23189062,254.5,254.43,23.776884]
[1732289527209,19.23189062,254.48,254.43,23.776884]
[1732289527411,19.23189062,254.46,254.43,23.776884]
[1732289527812,19.23189062,254.44,254.43,23.776884]
[1732289528017,19.23189062,254.44,254.33,15.1606]
[1732289529387,134.8,254.51,254.33,15.1606]
[1732289529388,19.23189062,254.48,254.34,23.776884]
[1732289529807,19.23189062,254.5,254.34,23.776884]
[1732289530217,19.23189062,254.48,254.34,23.776884]
[1732289531412,25.66049062,254.54,254.34,23.776884]
[1732289531413,19.23189062,254.44,254.34,23.776884]
[1732289532012,19.23189062,254.44,254.33,15.1606]
[1732289532719,19.23189062,254.46,254.33,15.1606]
[1732289533098,19.23189062,254.46,254.34,23.776884]
[1732289533517,19.23189062,254.44,254.34,23.776884]
[1732289533730,19.23189062,254.42,254.34,23.776884]
[1732289534112,19.23189062,254.44,254.34,23.776884]
[1732289534699,12.02861924,254.43,254.34,23.776884]
[1732289534902,12.02861924,254.45,254.34,23.776884]
[1732289536703,12.02861924,254.43,254.34,23.776884]
[1732289539823,12.02861924,254.45,254.34,23.776884]
[1732289540907,12.02861924,254.43,254.34,23.776884]
[1732289542500,12.02861924,254.45,254.34,23.776884]
[1732289544212,6.1502,254.48,254.34,23.776884]
[1732289544213,12.02861924,254.43,254.34,23.776884]
[1732289544828,12.02861924,254.41,254.33,15.1606]
[1732289545031,12.02861924,254.43,254.33,15.1606]
[1732289545420,6.1502,254.48,254.34,20.0]
[1732289545421,12.02861924,254.47,254.34,20.0]
[1732289546110,12.02861924,254.51,254.35,23.776884]
[1732289546305,12.02861924,254.51,254.33,15.1606]
[1732289546306,12.02861924,254.51,254.37,23.776884]
[1732289546511,12.02861924,254.51,254.39,23.776884]
[1732289546924,12.02861924,254.49,254.37,23.776884]
[1732289548216,12.02861924,254.51,254.38,20.0]
[1732289548534,12.02861924,254.53,254.39,23.776884]
[1732289548920,12.02861924,254.55,254.4,20.0]
[1732289549119,12.02861924,254.57,254.43,23.776884]
[1732289549335,12.02861924,254.53,254.43,23.776884]
[1732289549537,12.02861924,254.51,254.42,23.776884]
[1732289550643,12.02861924,254.49,254.41,15.5761]
[1732289551043,6.05146543,254.57,254.36,6.0564]
[1732289551230,12.02861924,254.5,254.36,6.0564]
[1732289551536,12.02861924,254.48,254.36,6.0564]
[1732289552050,12.02861924,254.46,254.36,6.0564]
[1732289552234,12.02861924,254.46,254.37,20.0]
[1732289552748,12.02861924,254.48,254.37,20.0]
[1732289553618,12.02861924,254.48,254.38,23.776884]
[1732289554031,12.02861924,254.46,254.38,23.776884]
[1732289554231,12.02861924,254.44,254.36,6.0564]
[1732289554428,12.02861924,254.44,254.37,23.776884]
[1732289555520,134.8,254.53,254.37,23.776884]
[1732289555521,12.02861924,254.46,254.37,23.776884]
[1732289556944,12.02861924,254.5,254.37,23.776884]
[1732289557141,12.02861924,254.52,254.37,23.776884]
[1732289557443,140.85146543,254.59,254.37,23.776884]
[1732289557444,12.02861924,254.5,254.37,23.776884]
[1732289557654,12.02861924,254.48,254.37,23.776884]
[1732289558019,12.02861924,254.46,254.37,23.776884]
[1732289558341,12.02861924,254.43,254.28,15.8231]
[1732289558520,12.02861924,254.41,254.28,15.8231]
[1732289558717,21.8868,254.48,254.28,15.8231]
[1732289558718,12.02861924,254.38,254.28,15.8231]
[1732289559647,12.02861924,254.32,254.22,15.2537]
[1732289560731,12.02861924,254.3,254.22,15.2537]
[1732289560939,12.02861924,254.3,254.23,23.776884]
[1732289561138,12.02861924,254.3,254.22,15.2537]
[1732289562847,12.02861924,254.3,254.23,23.776884]
[1732289563448,12.02861924,254.32,254.23,23.776884]
[1732289565827,12.02861924,254.3,254.23,23.776884]
[1732289566145,12.02861924,254.28,254.23,23.776884]
[1732289566562,12.02861924,254.3,254.23,23.776884]
[1732289566853,12.02861924,254.34,254.23,23.776884]
[1732289567257,12.02861924,254.38,254.23,23.776884]